[Event "MČR 2022 rapid"]
[Site "Turnov, Czech Republic"]
[Date "2022.09.11"]
[Round "9.4"]
[White "Baláček, Tadeáš"]
[Black "Cakl, Zdeněk"]
[Result "1-0"]
[TimeControl "2x 15 min + 5s/move"]
[WhiteElo "2247"]
[BlackElo "2059"]

1. d4 {[%clk 00:15:06]} {[%emt 00:00:09]} Nf6 {[%clk 00:15:08]} 2. c4 {[%clk
00:15:10]} e6 {[%clk 00:15:11]} 3. Nc3 {[%clk 00:15:13]} d5 {[%clk 00:15:14]} 4.
Nf3 {[%clk 00:15:14]} {[%emt 00:00:05]} Be7 {[%clk 00:15:16]} 5. Bf4 {[%clk
00:15:17]} O-O {[%clk 00:15:10]} {[%emt 00:00:10]} 6. e3 {[%clk 00:15:20]} Nbd7
{[%clk 00:15:03]} {[%emt 00:00:14]} 7. c5 {[%clk 00:15:22]} {[%emt 00:00:05]}
c6 {[%clk 00:13:35]} {[%emt 00:02:03]} 8. h3 {[%clk 00:15:23]} b6 {[%clk
00:13:23]} 9. b4 {[%clk 00:15:27]} a5 {[%clk 00:12:54]} {[%emt 00:00:29]} 10.
a3 {[%clk 00:15:29]} Ba6 {[%clk 00:12:39]} {[%emt 00:00:18]} 11. Bxa6 {[%clk
00:15:30]} {[%emt 00:00:07]} Rxa6 {[%clk 00:12:43]} 12. O-O {[%clk 00:14:33]}
{[%emt 00:02:58]} b5 {[%clk 00:12:32]} {[%emt 00:03:26]} 13. Qc2 {[%clk
00:14:08]} Qa8 {[%clk 00:11:43]} 14. Rab1 {[%clk 00:13:55]} Qa7 {[%clk
00:09:51]} 15. a4 {[%clk 00:13:16]} axb4 {[%clk 00:08:02]} {[%emt 00:01:09]} 16.
axb5 {[%clk 00:13:18]} {[%emt 00:00:06]} cxb5 {[%clk 00:07:19]} {[%emt
00:00:45]} 17. Rxb4 {[%clk 00:12:55]} {[%emt 00:00:33]} Ra3 {[%clk 00:06:09]}
{[%emt 00:01:10]} 18. Rfb1 {[%clk 00:12:20]} {[%emt 00:00:40]} Ra8 {[%clk
00:05:42]} {[%emt 00:00:36]} 19. Nxb5 {[%clk 00:11:43]} {[%emt 00:00:41]} 1-0

[Event "MČR 2022 rapid"]
[Site "Turnov, Czech Republic"]
[Date "2022.09.11"]
[Round "9.5"]
[White "Štoček, Jiří"]
[Black "Paulus, Václav"]
[Result "1-0"]
[TimeControl "2x 15 min + 5s/move"]
[WhiteElo "2521"]
[BlackElo "1832"]

1. d4 {[%clk 00:15:07]} {[%emt 00:00:04]} Nf6 {[%clk 00:15:09]} 2. c4 {[%clk
00:15:04]} {[%emt 00:00:09]} g6 {[%clk 00:15:11]} {[%emt 00:00:05]} 3. Nc3
{[%clk 00:15:06]} Bg7 {[%clk 00:15:07]} {[%emt 00:00:06]} 4. e4 {[%clk
00:15:09]} {[%emt 00:00:06]} d6 {[%clk 00:15:11]} 5. Be2 {[%clk 00:15:09]}
{[%emt 00:00:08]} O-O {[%clk 00:15:12]} 6. Nf3 {[%clk 00:15:01]} {[%emt
00:00:11]} e5 {[%clk 00:15:13]} {[%emt 00:00:05]} 7. Be3 {[%clk 00:14:57]}
{[%emt 00:00:09]} exd4 {[%clk 00:14:49]} {[%emt 00:00:28]} 8. Nxd4 {[%clk
00:14:59]} {[%emt 00:00:05]} Re8 {[%clk 00:14:53]} 9. f3 {[%clk 00:14:57]}
{[%emt 00:00:09]} c6 {[%clk 00:14:56]} {[%emt 00:00:05]} 10. Bf2 {[%clk
00:15:00]} Nbd7 {[%clk 00:14:38]} {[%emt 00:00:19]} 11. O-O {[%clk 00:14:56]}
{[%emt 00:00:10]} Nc5 {[%clk 00:14:08]} {[%emt 00:00:39]} 12. Qd2 {[%clk
00:14:18]} {[%emt 00:00:39]} a5 {[%clk 00:14:09]} {[%emt 00:00:04]} 13. Rad1
{[%clk 00:14:10]} {[%emt 00:00:12]} Qc7 {[%clk 00:13:41]} {[%emt 00:00:36]} 14.
Nc2 {[%clk 00:13:39]} {[%emt 00:00:37]} Re6 {[%clk 00:11:41]} {[%emt 00:02:05]}
15. Kh1 {[%clk 00:13:03]} {[%emt 00:00:39]} b6 {[%clk 00:11:34]} {[%emt
00:00:15]} 16. Bg3 {[%clk 00:12:11]} {[%emt 00:00:53]} Ne8 {[%clk 00:11:06]}
{[%emt 00:00:41]} 17. Nd4 {[%clk 00:11:54]} {[%emt 00:00:15]} Re7 {[%clk
00:11:00]} {[%emt 00:00:11]} 18. Bh4 {[%clk 00:11:50]} {[%emt 00:00:12]} f6
{[%clk 00:09:52]} {[%emt 00:01:11]} 19. Bg3 {[%clk 00:11:23]} {[%emt 00:02:01]}
Bb7 {[%clk 00:09:10]} 20. b3 {[%clk 00:11:17]} Rd8 {[%clk 00:09:05]} 21. a3
{[%clk 00:11:05]} Bc8 {[%clk 00:08:10]} {[%emt 00:00:55]} 22. b4 {[%clk
00:11:00]} {[%emt 00:00:12]} axb4 {[%clk 00:08:14]} 23. axb4 {[%clk 00:11:03]}
{[%emt 00:00:05]} Ne6 {[%clk 00:08:17]} 24. Nb3 {[%clk 00:10:13]} {[%emt
00:00:53]} Qb7 {[%clk 00:07:51]} {[%emt 00:00:39]} 25. f4 {[%clk 00:09:54]}
{[%emt 00:00:17]} Bh6 {[%clk 00:06:15]} {[%emt 00:01:43]} 26. Qc2 {[%clk
00:09:33]} {[%emt 00:00:24]} Rg7 {[%clk 00:05:21]} {[%emt 00:00:59]} 27. b5
{[%clk 00:08:32]} {[%emt 00:01:06]} g5 {[%clk 00:04:50]} {[%emt 00:00:40]} 28.
fxg5 {[%clk 00:08:19]} {[%emt 00:00:13]} Rxg5 {[%clk 00:04:05]} {[%emt
00:00:55]} 29. bxc6 {[%clk 00:08:10]} {[%emt 00:00:11]} Qg7 {[%clk 00:03:51]}
{[%emt 00:00:19]} 30. Rd3 {[%clk 00:07:25]} {[%emt 00:00:48]} Qg6 {[%clk
00:02:05]} {[%emt 00:02:00]} 31. Nd5 {[%clk 00:06:59]} {[%emt 00:00:28]} Qxe4
{[%clk 00:01:55]} {[%emt 00:00:13]} 32. Bf3 {[%clk 00:06:34]} {[%emt 00:00:30]}
Qg6 {[%emt 00:00:10]} 1-0

[Event "MČR 2022 rapid"]
[Site "Turnov, Czech Republic"]
[Date "2022.09.11"]
[Round "9.6"]
[White "Hurtík, Matěj"]
[Black "Petr, Martin"]
[Result "0-1"]
[TimeControl "2x 15 min + 5s/move"]
[WhiteElo "1848"]
[BlackElo "2506"]

1. e4 {[%clk 00:15:09]} {[%emt 00:00:06]} d5 {[%clk 00:15:09]} 2. exd5 {[%clk
00:15:12]} {[%emt 00:00:08]} Qxd5 {[%clk 00:15:13]} 3. Nc3 {[%clk 00:15:11]}
Qa5 {[%clk 00:15:17]} 4. d4 {[%clk 00:15:14]} {[%emt 00:00:05]} Nf6 {[%clk
00:15:21]} 5. Nf3 {[%clk 00:15:18]} Bf5 {[%clk 00:15:24]} 6. Bc4 {[%clk
00:14:30]} {[%emt 00:00:52]} e6 {[%clk 00:15:28]} 7. O-O {[%clk 00:14:21]}
{[%emt 00:00:16]} Bb4 {[%clk 00:15:30]} {[%emt 00:00:05]} 8. Ne2 {[%clk
00:14:11]} {[%emt 00:00:16]} c6 {[%clk 00:15:29]} {[%emt 00:00:04]} 9. Bf4
{[%clk 00:13:41]} {[%emt 00:00:36]} Nbd7 {[%clk 00:15:14]} {[%emt 00:00:21]} 10.
a3 {[%clk 00:13:07]} {[%emt 00:00:34]} Be7 {[%clk 00:15:16]} {[%emt 00:00:05]}
11. b4 {[%clk 00:13:10]} {[%emt 00:00:04]} Qd8 {[%clk 00:15:15]} {[%emt
00:00:07]} 12. Bb3 {[%clk 00:12:26]} {[%emt 00:00:46]} O-O {[%clk 00:15:11]}
{[%emt 00:00:09]} 13. Nh4 {[%clk 00:10:49]} {[%emt 00:01:42]} Bg4 {[%clk
00:14:47]} {[%emt 00:00:29]} 14. f3 {[%clk 00:09:43]} {[%emt 00:01:10]} Nd5
{[%clk 00:13:33]} {[%emt 00:01:20]} 15. fxg4 {[%clk 00:09:24]} {[%emt
00:00:24]} Bxh4 {[%clk 00:13:36]} 16. Bd2 {[%clk 00:08:59]} {[%emt 00:00:36]}
Bg5 {[%clk 00:13:35]} {[%emt 00:00:15]} 17. Qc1 {[%clk 00:09:02]} Bxd2 {[%clk
00:12:48]} {[%emt 00:00:41]} 18. Qxd2 {[%clk 00:09:04]} {[%emt 00:00:10]} a5
{[%clk 00:12:51]} 19. c4 {[%clk 00:08:46]} {[%emt 00:00:18]} Ne7 {[%clk
00:12:33]} {[%emt 00:00:23]} 20. Qd3 {[%clk 00:07:36]} {[%emt 00:01:15]} Ng6
{[%clk 00:12:16]} {[%emt 00:00:25]} 21. Bc2 {[%clk 00:06:02]} {[%emt 00:01:42]}
axb4 {[%clk 00:11:54]} {[%emt 00:00:22]} 22. axb4 {[%clk 00:06:00]} {[%emt
00:00:06]} Qe7 {[%clk 00:11:50]} {[%emt 00:00:09]} 23. g3 {[%clk 00:03:10]}
{[%emt 00:02:56]} Rfd8 {[%clk 00:10:50]} {[%emt 00:01:05]} 24. Qc3 {[%clk
00:02:31]} {[%emt 00:00:43]} Qg5 {[%clk 00:09:57]} {[%emt 00:00:58]} 25. Qf3
{[%clk 00:01:50]} {[%emt 00:00:46]} Nf6 {[%clk 00:09:37]} {[%emt 00:00:25]} 0-1

[Event "MČR 2022 rapid"]
[Site "Turnov, Czech Republic"]
[Date "2022.09.11"]
[Round "9.7"]
[White "Neuman, Petr"]
[Black "Hofman, Kryštof"]
[Result "1-0"]
[TimeControl "2x 15 min + 5s/move"]
[WhiteElo "2416"]
[BlackElo "1746"]

1. e4 {[%clk 00:15:08]} d6 {[%clk 00:15:03]} {[%emt 00:00:13]} 2. d4 {[%clk
00:15:12]} Nf6 {[%clk 00:15:06]} 3. Nc3 {[%clk 00:15:15]} g6 {[%clk 00:15:08]}
4. h3 {[%clk 00:15:19]} {[%emt 00:00:05]} Bg7 {[%clk 00:14:37]} {[%emt
00:00:27]} 5. g4 {[%clk 00:15:23]} {[%emt 00:00:05]} c5 {[%clk 00:13:55]}
{[%emt 00:00:45]} 6. dxc5 {[%clk 00:15:26]} {[%emt 00:00:05]} dxc5 {[%clk
00:12:47]} {[%emt 00:01:09]} 7. Qxd8+ {[%clk 00:15:29]} Kxd8 {[%clk 00:12:51]}
{[%emt 00:00:06]} 8. e5 {[%clk 00:15:15]} {[%emt 00:00:16]} Nfd7 {[%clk
00:12:35]} {[%emt 00:00:21]} 9. f4 {[%clk 00:15:18]} Nc6 {[%clk 00:12:23]}
{[%emt 00:00:18]} 10. Be3 {[%clk 00:15:22]} g5 {[%clk 00:11:38]} {[%emt
00:00:56]} 11. fxg5 {[%clk 00:15:22]} {[%emt 00:00:10]} Ncxe5 {[%clk 00:11:08]}
{[%emt 00:00:32]} 12. O-O-O {[%clk 00:15:22]} Rb8 {[%clk 00:10:44]} {[%emt
00:00:34]} 13. Bg2 {[%clk 00:14:46]} {[%emt 00:00:35]} b5 {[%clk 00:10:15]}
{[%emt 00:00:35]} 14. Nge2 {[%clk 00:14:43]} {[%emt 00:00:06]} b4 {[%clk
00:09:48]} {[%emt 00:00:36]} 15. Na4 {[%clk 00:14:42]} {[%emt 00:00:05]} Ba6
{[%clk 00:09:14]} {[%emt 00:00:37]} 16. Ng3 {[%clk 00:14:41]} {[%emt 00:00:17]}
Bb5 {[%clk 00:08:16]} {[%emt 00:00:51]} 17. Nxc5 {[%clk 00:14:35]} {[%emt
00:00:12]} Nc4 {[%clk 00:07:30]} {[%emt 00:00:50]} 18. Bd4 {[%clk 00:14:33]}
{[%emt 00:00:07]} Bxd4 {[%clk 00:07:17]} {[%emt 00:00:17]} 19. Rxd4 {[%clk
00:14:36]} {[%emt 00:00:05]} Nd6 {[%clk 00:07:05]} {[%emt 00:00:14]} 20. Nxd7
{[%clk 00:14:37]} {[%emt 00:00:14]} Bxd7 {[%clk 00:07:05]} 21. Ne4 {[%clk
00:14:32]} {[%emt 00:00:06]} Nxe4 {[%clk 00:06:15]} {[%emt 00:00:55]} 22. Bxe4
{[%clk 00:14:35]} {[%emt 00:00:05]} Ke8 {[%clk 00:06:00]} {[%emt 00:00:16]} 23.
Rhd1 {[%clk 00:14:36]} {[%emt 00:00:11]} Be6 {[%clk 00:05:58]} {[%emt
00:00:04]} 24. b3 {[%clk 00:14:01]} {[%emt 00:00:40]} h5 {[%clk 00:05:41]}
{[%emt 00:00:19]} 25. g6 {[%clk 00:13:23]} {[%emt 00:00:48]} hxg4 {[%clk
00:05:15]} {[%emt 00:00:30]} 26. g7 {[%clk 00:13:23]} {[%emt 00:00:05]} 1-0

[Event "MČR 2022 rapid"]
[Site "Turnov, Czech Republic"]
[Date "2022.09.11"]
[Round "9.8"]
[White "Kaplánek, Jan"]
[Black "Klement, Lukáš"]
[Result "0-1"]
[TimeControl "2x 15 min + 5s/move"]
[WhiteElo "1682"]
[BlackElo "2264"]

1. e4 {[%clk 00:15:10]} {[%emt 00:30:53]} c5 {[%clk 00:15:08]} 2. Nf3 {[%clk
00:15:13]} {[%emt 00:00:14]} d6 {[%clk 00:15:13]} 3. d4 {[%clk 00:15:17]} cxd4
{[%clk 00:15:17]} 4. Nxd4 {[%clk 00:15:21]} Nf6 {[%clk 00:15:20]} 5. Nc3 {[%clk
00:15:25]} {[%emt 00:00:04]} a6 {[%clk 00:15:24]} 6. Bd3 {[%clk 00:15:28]} e5
{[%clk 00:15:17]} {[%emt 00:00:19]} 7. Nde2 {[%clk 00:15:31]} Be6 {[%clk
00:15:04]} {[%emt 00:00:06]} 8. Bg5 {[%clk 00:15:14]} {[%emt 00:00:22]} Nbd7
{[%clk 00:14:57]} {[%emt 00:00:10]} 9. O-O {[%clk 00:15:04]} {[%emt 00:00:15]}
Be7 {[%clk 00:14:49]} {[%emt 00:00:24]} 10. f4 {[%emt 00:01:38]} Qc7 11. f5
{[%clk 00:13:28]} {[%emt 00:00:28]} Bc4 {[%clk 00:14:29]} {[%emt 00:00:04]} 12.
Bxc4 {[%clk 00:13:18]} {[%emt 00:00:11]} Qxc4 {[%clk 00:14:31]} {[%emt
00:00:06]} 13. Ng3 {[%clk 00:11:57]} {[%emt 00:01:23]} Rc8 {[%clk 00:14:03]}
{[%emt 00:01:57]} 14. Nh5 {[%clk 00:11:16]} O-O {[%clk 00:10:54]} {[%emt
00:02:36]} 15. Bxf6 {[%clk 00:10:33]} {[%emt 00:00:57]} Nxf6 {[%clk 00:10:46]}
{[%emt 00:00:06]} 16. Nxf6+ {[%clk 00:10:27]} {[%emt 00:00:21]} Bxf6 {[%clk
00:10:50]} 17. Qg4 {[%clk 00:09:49]} {[%emt 00:00:34]} Qc5+ {[%clk 00:09:39]}
{[%emt 00:01:18]} 18. Kh1 {[%clk 00:09:44]} {[%emt 00:00:07]} Qe3 {[%clk
00:09:40]} {[%emt 00:00:10]} 19. Nd5 {[%clk 00:09:17]} {[%emt 00:00:29]} Qg5
{[%emt 00:00:15]} 20. Nxf6+ {[%clk 00:09:06]} {[%emt 00:00:12]} Qxf6 {[%clk
00:09:33]} {[%emt 00:00:06]} 21. c3 {[%clk 00:08:48]} {[%emt 00:00:20]} Rc4
{[%clk 00:08:56]} {[%emt 00:00:51]} 22. Rf3 {[%clk 00:08:33]} {[%emt 00:00:10]}
d5 {[%clk 00:08:56]} {[%emt 00:00:11]} 23. Re1 {[%clk 00:08:05]} {[%emt
00:00:31]} Rd8 {[%clk 00:08:52]} {[%emt 00:00:05]} 24. Rd3 {[%clk 00:06:38]}
{[%emt 00:01:39]} Rxe4 {[%clk 00:06:35]} {[%emt 00:02:16]} 25. Rxe4 {[%clk
00:06:12]} {[%emt 00:00:30]} dxe4 {[%clk 00:06:29]} {[%emt 00:00:12]} 26. Qxe4
{[%clk 00:06:15]} {[%emt 00:00:05]} Rxd3 {[%clk 00:06:01]} {[%emt 00:00:34]} 27.
Qxd3 {[%clk 00:06:19]} Qe7 {[%clk 00:06:00]} {[%emt 00:00:05]} 28. Qc4 {[%clk
00:05:39]} {[%emt 00:00:43]} Qd7 {[%clk 00:04:33]} {[%emt 00:01:30]} 29. Qf1
{[%clk 00:05:01]} {[%emt 00:00:52]} e4 {[%clk 00:04:05]} {[%emt 00:00:27]} 30.
h3 {[%clk 00:04:56]} {[%emt 00:00:14]} g6 {[%clk 00:03:39]} {[%emt 00:00:26]}
31. f6 {[%clk 00:04:41]} {[%emt 00:00:21]} Qe6 {[%clk 00:01:54]} {[%emt
00:01:49]} 32. Qf4 {[%clk 00:04:10]} {[%emt 00:00:46]} h6 {[%clk 00:01:38]}
{[%emt 00:00:13]} 33. Kg1 {[%clk 00:03:06]} {[%emt 00:01:12]} g5 {[%clk
00:01:23]} {[%emt 00:00:16]} 34. Qe3 {[%clk 00:02:33]} {[%emt 00:00:48]} Kh7
{[%clk 00:01:25]} 35. Kf2 {[%clk 00:01:47]} {[%emt 00:00:44]} Kg6 {[%clk
00:01:26]} {[%emt 00:00:05]} 36. Qd4 {[%clk 00:01:15]} {[%emt 00:00:46]} Qxf6+
{[%clk 00:01:12]} {[%emt 00:00:12]} 37. Qxf6+ {[%clk 00:01:16]} {[%emt
00:00:10]} Kxf6 {[%clk 00:01:17]} 38. Ke3 Ke5 39. b4 {[%clk 00:00:56]} {[%emt
00:00:16]} f5 {[%clk 00:01:14]} {[%emt 00:00:07]} 40. a4 {[%clk 00:00:53]}
{[%emt 00:00:09]} f4+ {[%clk 00:01:17]} {[%emt 00:00:05]} 41. Ke2 {[%emt
00:00:11]} Kd5 {[%emt 00:00:05]} 42. Kd2 {[%clk 00:00:20]} {[%emt 00:00:19]}
Kc4 {[%clk 00:01:18]} {[%emt 00:00:05]} 43. Ke2 {[%clk 00:15:05]} {[%emt
00:00:16]} 0-1